Cogmind - Beta 13 @@@ ROGUE MODE // 2024.04.01 @ 14:05:00 Player: Toa of Guts Result: Destroyed by G-47 Trooper with Particle Gun Performance ------------- Evolutions (1) 500 Regions Visited (5) 1000 Robots Destroyed (53) 265 Value Destroyed (1167) 1167 Prototype IDs (2) 40 Alien Tech Used (0) 0 Bonus (184) 184 TOTAL SCORE: 3156 Bonus ------- Aligned with FarCom 300 Friendly Fire -116 Cogmind --------- Core Integrity 0/400 Matter 4/300 Energy 63/100 System Corruption 6% Temperature Cool (18) Movement Hovering (147) Ox1 Location -8/Mines Parts ------- > --- POWER (1) -------- (None) > --- PROPULSION (2) --- Combat Airjet Combat Airjet > --- UTILITY (4) ------ High-capacity Storage Unit Weight Redist. System Signal Interpreter Supersonic Drone Bay (0/1) > --- WEAPON (2) ------- Light Assault Rifle > --- INVENTORY (20) --- Ion Engine Aluminum Leg Medium Storage Unit Large Storage Unit Large Storage Unit Improved Light Armor Plating EM Pulse Gun Light Assault Rifle Light Assault Rifle Light Assault Rifle Peak State ------------ > --- POWER ------------ Light Ion Engine > --- PROPULSION ------- Combat Airjet Combat Airjet > --- UTILITY ---------- High-capacity Storage Unit Weight Redist. System Signal Interpreter Chronowheel > --- WEAPON ----------- (None) > --- INVENTORY -------- Ion Engine Aluminum Leg Medium Storage Unit Large Storage Unit Large Storage Unit Improved Light Armor Plating EM Pulse Gun Light Assault Rifle Light Assault Rifle Light Assault Rifle Light Assault Rifle Light Assault Rifle AWS/Autocannon Grenade Launcher [Rating: 32] Favorites ----------- Power Light Ion Engine Engine Light Ion Engine Propulsion Improved Aluminum Leg Treads Light Treads Leg Improved Aluminum Leg Hover Unit Combat Airjet Utility High-capacity Storage Unit Device Weight Redist. System Storage High-capacity Storage Unit Processor Signal Interpreter Hackware Hacking Suite Weapon Light Assault Rifle Energy Gun Medium Laser Ballistic Gun Light Assault Rifle Launcher Grenade Launcher Build | -11 -10 -9 -9 -9 -8 ------- Run | Yrd Mat Mat Min Exi Min Slots Evolved 2 | . . 2 . . . Power . | . . . . . . Propulsion . | . . . . . . Utility 2 | . . 2 . . . Weapon . | . . . . . . Parts Attached 54 | 6 9 12 21 3 3 Power 11 | 1 1 3 6 . . Engine 11 | 1 1 3 6 . . Core . | . . . . . . Reactor . | . . . . . . Propulsion 14 | 2 3 4 5 . . Treads 2 | . 2 . . . . Leg 10 | 2 1 4 3 . . Wheel . | . . . . . . Hover 2 | . . . 2 . . Flight . | . . . . . . Utility 10 | 1 3 3 . 3 . Device 4 | . . 1 . 3 . Storage 4 | 1 2 1 . . . Processor 1 | . . 1 . . . Hackware 1 | . 1 . . . . Protection . | . . . . . . Artifact . | . . . . . . Weapon 19 | 2 2 2 10 . 3 Energy Gun 3 | 1 1 . 1 . . Energy Cannon . | . . . . . . Ballistic Gun 11 | 1 1 . 7 . 2 Ballistic Cannon . | . . . . . . Launcher 5 | . . 2 2 . 1 Special Weapon . | . . . . . . Impact Weapon . | . . . . . . Slashing Weapon . | . . . . . . Piercing Weapon . | . . . . . . Special Melee Weapon . | . . . . . . Unidentified Prototypes 2 | . . . . 2 . Parts Lost 18 | . . 2 13 . 3 Power 5 | . . 1 3 . 1 Propulsion 6 | . . 1 5 . . Utility 1 | . . . 1 . . Weapon 6 | . . . 4 . 2 Highest Loss Streak 5 | . . 1 5 . 3 To Critical Strikes . | . . . . . . Average Slot Usage (%) 79 | . 80 78 84 72 84 Engine 7 | . 3 6 8 11 8 Treads 6 | . 21 7 . . . Leg 9 | . 6 13 14 . . Hover 5 | . . . 5 22 22 Device 8 | . . 7 11 14 22 Storage 11 | . 14 11 11 11 11 Processor 8 | . . 9 11 11 11 Hackware 6 | . 8 11 5 . . Energy Gun 3 | . 12 . . . . Ballistic Gun 7 | . 13 . 11 2 8 Launcher 3 | . . 9 4 . 1 Naked Turns . | . . . . . . Heaviest Build 49 | 11 43 46 49 44 48 Greatest Support 46 | 20 40 46 32 30 30 Greatest Overweight (x) 4 | . 1 4 4 1 1 Average Overweight (x) . | . . 1 1 1 1 Largest Inventory Capacity 20 | 8 20 20 20 20 20 Average Capacity 19 | 6 17 20 20 20 20 Most Carried 20 | 7 20 20 15 16 13 Average Carried 12 | 3 10 15 12 12 11 Final Capacity 20 | 8 20 20 20 20 20 Final Carried 20 | 4 20 14 12 13 10 Class Distribution -------------------- 70% | Mutant 29% | Scavenger-Mutant Dominant Class ---------------- Mutant | -10/Materials Mutant | -9/Materials Mutant | -9/Mines Scavenger-Mutant | -9/Exiles Scavenger-Mutant | -8/Mines Resources | -11 -10 -9 -9 -9 -8 ----------- Run | Yrd Mat Mat Min Exi Min Matter Collected 1098 | 243 157 221 477 . . Remotely . | . . . . . . Salvage Created 1118 | . 382 350 335 . 51 Parts 84 | . 19 30 32 . 3 Haulers Intercepted . | . . . . . . Recyclers Shooed . | . . . . . . Parts Field Recycled . | . . . . . . Retrieved Matter . | . . . . . . Parts Self-Destructed . | . . . . . . Prevented . | . . . . . . Kills | -11 -10 -9 -9 -9 -8 ------- Run | Yrd Mat Mat Min Exi Min Combat Hostiles Destroyed 39 | . 10 11 17 . 1 Guns 22 | . 9 . 12 . 1 AOE 16 | . . 11 5 . . Classes Destroyed 12 | . 3 5 3 . 1 Worker 4 | . . 2 2 . . Builder 4 | . . 4 . . . Tunneler 1 | . . . 1 . . Mechanic 1 | . . 1 . . . Operator 1 | . 1 . . . . Drone 1 | . . . . . 1 Watcher 3 | . . 3 . . . Swarmer 16 | . 2 3 11 . . Grunt 18 | . 8 6 4 . . Brawler 2 | . . . 1 . 1 Sentry 2 | . . 2 . . . Demolisher 1 | . . . 1 . . Best Kill Streak 6 | . 3 6 4 . 1 Combat Bots Only 4 | . 3 3 4 . 1 Max Kills in Single Turn 2 | . 2 2 2 . 1 Gunslinging . | . . . . . . Exploded 2 | . . 2 2 . . Melee . | . . . . . . Uniques/NPCs Destroyed . | . . . . . . Combat | -11 -10 -9 -9 -9 -8 -------- Run | Yrd Mat Mat Min Exi Min Hostile Shots Fired 262 | . 80 41 112 . 29 Missed 73 | . 23 12 28 . 10 Damage Taken 2527 | . 687 429 1115 . 296 Core 645 | . 231 57 309 . 48 Absorbed by Shields . | . . . . . . Core Remaining (%) 53 | 100 7 . . . . Volleys Fired 163 | . 50 35 64 . 14 Largest 2 | . 2 1 2 . 2 Hottest 70 | . 70 30 60 . 50 Shots Fired 251 | . 99 35 93 . 24 Gun 203 | . 99 . 81 . 23 Cannon . | . . . . . . Launcher 48 | . . 35 12 . 1 Special . | . . . . . . Kinetic 146 | . 50 . 73 . 23 Thermal 49 | . 49 . . . . Explosive 48 | . . 35 12 . 1 Electromagnetic 8 | . . . 8 . . Robot Hit Streak 10 | . 9 2 10 . 7 Robot Miss Streak 5 | . 3 3 5 . 2 Penetration Max . | . . . . . . Secondary Targets 3 | . 2 . 1 . . Max Gunslinging Chain 1 | . 1 . 1 . . Shots Hit Robots 142 | . 62 7 57 . 16 Core Hits 98 | . 23 39 30 . 6 Critical Kills . | . . . . . . Critical Parts Destroyed 2 | . 1 . . . 1 Critical Strikes 6 | . 5 . . . 1 Burn 4 | . 4 . . . . Destroy 2 | . 1 . . . 1 Melee Attacks . | . . . . . . Impact . | . . . . . . Slashing . | . . . . . . Piercing . | . . . . . . Sneak Attacks . | . . . . . . Combat Hostiles . | . . . . . . Follow-up Attacks . | . . . . . . Damage Inflicted 3278 | . 656 1420 983 . 219 Guns 1283 | . 656 . 500 . 127 Cannons . | . . . . . . Explosions 1995 | . . 1420 483 . 92 Melee . | . . . . . . Ramming . | . . . . . . Kinetic 809 | . 253 . 429 . 127 Thermal 403 | . 403 . . . . Explosive 1995 | . . 1420 483 . 92 Electromagnetic 71 | . . . 71 . . Impact . | . . . . . . Slashing . | . . . . . . Piercing . | . . . . . . Highest Corruption 6 | . . 1 6 6 6 Average Corruption 3 | . . 1 3 6 6 Corruption Purged . | . . . . . . Corruption Blocked . | . . . . . . Effects 50 | . . 2 27 19 2 Message Errors 17 | . . 2 8 6 1 Matter Fused 11 | . . . 4 7 . Heat Flow Errors 6 | . . . 3 3 . Energy Discharges 4 | . . . 4 . . Data Loss (minor) 4 | . . . 3 1 . Data Loss (major) 3 | . . . 2 . 1 Misfires 2 | . . . 2 . . Alerts 2 | . . . . 2 . Weapon Failures 1 | . . . 1 . . Overload Shots . | . . . . . . Overflow Damage 55 | . . 24 31 . . Projectiles . | . . . . . . Explosions 55 | . . 24 31 . . Melee . | . . . . . . Knockbacks . | . . . . . . Impact . | . . . . . . Kinetic . | . . . . . . Secondary . | . . . . . . Self-Inflicted Damage 161 | . . 95 66 . . Shots 10 | . . 5 5 . . Rammed . | . . . . . . Targets Rammed . | . . . . . . Kicked . | . . . . . . Crushed . | . . . . . . Highest Temperature 244 | . 244 2 144 210 28 Average Temperature 60 | . 69 1 31 83 10 Received Heat Transfer 777 | . 333 78 177 . 189 Siege Activations . | . . . . . . Robots Corrupted . | . . . . . . Combat Hostiles . | . . . . . . Parts Fried 1 | . . . 1 . . Impact Corruptions . | . . . . . . Robots Melted 1 | . 1 . . . . Combat Hostiles 1 | . 1 . . . . Parts Melted 5 | . 5 . . . . Heat Transferred 1480 | . 1480 . . . . Parts Sabotaged . | . . . . . . Parts Stolen . | . . . . . . Parts Stripped . | . . . . . . Power Chain Reactions . | . . . . . . Alert | -11 -10 -9 -9 -9 -8 ------- Run | Yrd Mat Mat Min Exi Min Peak Influence 282 | . 140 282 257 . 30 Initial 109 | . . 8 109 . . Average 102 | . 63 69 162 . 6 Maximum Alert Level 1 | . . 1 1 . . Low Security (%) 85 | 100 100 97 65 . 100 Level 1 14 | . . 2 34 . . Level 2 . | . . . . . . Level 3 . | . . . . . . Level 4 . | . . . . . . Level 5 . | . . . . . . High Security . | . . . . . . Max Security . | . . . . . . Squads Dispatched 3 | . 2 1 . . . Investigation 1 | . 1 . . . . Extermination . | . . . . . . Reinforcement 2 | . 1 1 . . . Assault . | . . . . . . Garrison . | . . . . . . Intercept . | . . . . . . Searches Triggered . | . . . . . . Construction Impeded 1 | . . 1 . . . Haulers Reinforced . | . . . . . . Active Scanning Responses . | . . . . . . Cargo Convoy Interrupts . | . . . . . . Stealth | -11 -10 -9 -9 -9 -8 --------- Run | Yrd Mat Mat Min Exi Min Distress Signals 3 | . 1 2 . . . Communications Jammed . | . . . . . . Distress Signals . | . . . . . . Times Spotted 55 | . 14 17 21 . 3 Peak Tracking Total 6 | . 3 4 6 . 3 Tactical Retreats 4 | . 1 1 2 . . Traps | -11 -10 -9 -9 -9 -8 ------- Run | Yrd Mat Mat Min Exi Min Traps Triggered 5 | . 2 3 . . . Indirectly . | . . . . . . Trap Hack Attempts . | . . . . . . Triggered . | . . . . . . Disarmed . | . . . . . . Reprogrammed . | . . . . . . Reused . | . . . . . . Traps Extracted . | . . . . . . Installed . | . . . . . . Triggered . | . . . . . . Machines | -11 -10 -9 -9 -9 -8 ---------- Run | Yrd Mat Mat Min Exi Min Machines Disabled 3 | . . 2 1 . . Max in Single Turn 1 | . . 1 1 . . Machines Repaired . | . . . . . . Machines Dismantled . | . . . . . . Machines Sabotaged . | . . . . . . Overloaded Fab Kills . | . . . . . . Hacking | -11 -10 -9 -9 -9 -8 --------- Run | Yrd Mat Mat Min Exi Min Machines Accessed . | . . . . . . Terminals . | . . . . . . Fabricators . | . . . . . . Repair Stations . | . . . . . . Recycling Units . | . . . . . . Scanalyzers . | . . . . . . Garrison Access . | . . . . . . Total Hacks . | . . . . . . Successful . | . . . . . . Failed . | . . . . . . Catastrophic . | . . . . . . Database Lockouts . | . . . . . . Manual 1 | . . . . 1 . Terminals . | . . . . . . Fabricators . | . . . . . . Repair Stations . | . . . . . . Recycling Units . | . . . . . . Scanalyzers . | . . . . . . Garrison Access . | . . . . . . Terminal Hacks . | . . . . . . Fabricator Hacks . | . . . . . . Repair Station Hacks . | . . . . . . Recycling Unit Hacks . | . . . . . . Scanalyzer . | . . . . . . Garrison Access Hacks . | . . . . . . Unauthorized Hacks . | . . . . . . Terminals . | . . . . . . Fabricators . | . . . . . . Repair Stations . | . . . . . . Recycling Units . | . . . . . . Scanalyzers . | . . . . . . Garrison Access . | . . . . . . Data Cores Recovered 1 | . 1 . . . . Used . | . . . . . . Hacking Detections . | . . . . . . Full Trace Events . | . . . . . . Feedback Events . | . . . . . . Feedback Blocked . | . . . . . . Robot Schematics Acquired . | . . . . . . Robots Built . | . . . . . . Authchips . | . . . . . . Time . | . . . . . . Total Robot Build Rating . | . . . . . . Part Schematics Acquired . | . . . . . . Parts Built . | . . . . . . Authchips . | . . . . . . Time . | . . . . . . Total Part Build Rating . | . . . . . . Parts Repaired . | . . . . . . Time . | . . . . . . Parts Recycled . | . . . . . . Recycled Matter . | . . . . . . Retrieved Matter . | . . . . . . Retrieved Components . | . . . . . . Parts Scanalyzed . | . . . . . . Part Schematics Acquired . | . . . . . . Parts Damaged . | . . . . . . Bothacking | -11 -10 -9 -9 -9 -8 ------------ Run | Yrd Mat Mat Min Exi Min Used RIF Installer . | . . . . . . Robots Hacked . | . . . . . . Non-combat . | . . . . . . Combat . | . . . . . . Robot Hacks Applied . | . . . . . . Relay Couplers Released . | . . . . . . Fabnet Peak Effective % . | . . . . . . Robots Rewired . | . . . . . . Allies Hacked . | . . . . . . Hacks Repelled . | . . . . . . Allies | -11 -10 -9 -9 -9 -8 -------- Run | Yrd Mat Mat Min Exi Min Total Allies 2 | . . . 2 . . Largest Group 2 | . . . 2 2 . Highest-Rated Group 45 | . . . 45 45 . Highest-Rated Ally 31 | . . . 31 31 . Total Orders . | . . . . . . Ally Attacks . | . . . . . . Total Damage . | . . . . . . Kills . | . . . . . . Allies Corrupted . | . . . . . . Allies Melted . | . . . . . . Intel | -11 -10 -9 -9 -9 -8 ------- Run | Yrd Mat Mat Min Exi Min Robot Analysis Total . | . . . . . . Derelict Logs Recovered 3 | . . . 3 . . Drone Launches 1 | . . . . . 1 Drone Recoveries . | . . . . . . Exploration | -11 -10 -9 -9 -9 -8 ------------- Run | Yrd Mat Mat Min Exi Min Turns Passed 4152 | 48 948 995 1372 709 80 Spaces Moved 2013 | 34 395 438 655 476 15 Core 57 | 12 . 5 40 . . Treads 403 | . 260 143 . . . Legs 854 | 22 135 290 407 . . Wheels . | . . . . . . Hover 699 | . . . 208 476 15 Flight . | . . . . . . Fastest Speed 50 | 50 120 160 147 147 147 Average Speed 178 | 95 194 205 180 147 147 Slowest Speed 250 | 120 240 250 250 147 147 Overloaded Moves . | . . . . . . Propulsion Burnouts . | . . . . . . Robots Hopped . | . . . . . . Cave-ins Triggered . | . . . . . . Exploration Rate (%) 50 | 3 72 42 97 83 6 Regions Visited 5 Branch Regions 3 Pre-discovered Areas 2 | . . . 2 . . Known Exits Taken 3 | . . 1 1 1 . Unknown Exits Taken 2 | 1 1 . . . . Scrap Searched 1 | . . . 1 . . Spaces Dug . | . . . . . . Terrain Destroyed 262 | . . 153 102 . 7 Melee . | . . . . . . Projectile . | . . . . . . AOE 262 | . . 153 102 . 7 Terrain Rammed . | . . . . . . Walls Destroyed . | . . . . . . Machines Disabled . | . . . . . . Actions | -11 -10 -9 -9 -9 -8 --------- Run | Yrd Mat Mat Min Exi Min Total 2341 | 49 486 500 766 486 54 Wait 48 | . 11 3 11 1 22 Move 2008 | 33 394 437 654 475 15 Hop . | . . . . . . Pick Up 51 | 10 18 6 13 4 . Fast Attach 2 | . 1 1 . . . Attach 39 | 6 6 8 14 2 3 Detach 7 | . 4 1 1 1 . Swap 13 | . 2 3 7 1 . Drop 10 | . . 6 2 2 . Fire 163 | . 50 35 64 . 14 Melee . | . . . . . . Ram . | . . . . . . Kick . | . . . . . . Crush . | . . . . . . Escape Stasis . | . . . . . . Rewire . | . . . . . . Trap . | . . . . . . Miscellaneous . | . . . . . . Route ------- -11/Scrapyard -10/Materials (discovered 3 exits: [*Mat x3]) -9/Materials (discovered 2 exits: *Mat / *Min) -9/Mines (discovered 3 exits: *Mat x2 / *Exi) -9/Exiles (discovered 2 exits: *Min x2) -8/Mines History --------- Turn | Location | Event 16 | -11/Scrapyard | Discovered new exit (range 16) 49 | -11/Scrapyard | Entered Materials 318 | -10/Materials | Build established: Mutant 378 | -10/Materials | Discovered new exit (range 12) 500 | -10/Materials | Derelicts attacked the area 527 | -10/Materials | Discovered new exit (range 14) 563 | -10/Materials | Core integrity fell below 50% 910 | -10/Materials | Core integrity fell below 20% 926 | -10/Materials | Discovered new exit (range 16) 997 | -10/Materials | Entered another Materials area 997 | -9/Materials | Evolved 2 slots: Utility x2 1510 | -9/Materials | Discovered new exit (range 16) 1537 | -9/Materials | Identified exit to Materials 1938 | -9/Materials | Discovered new exit (range 16) 1986 | -9/Materials | Identified exit to Mines 1992 | -9/Materials | Entered Mines 2035 | -9/Mines | Learned location of Zion (-6) 2459 | -9/Mines | Lost 4 parts (2n2w) 2505 | -9/Mines | Assembled infested the area 2516 | -9/Mines | Learned Materials security intel 2899 | -9/Mines | Core integrity fell below 50% 2933 | -9/Mines | Core integrity fell below 20% 2963 | -9/Mines | Lost 5 parts (1p2n2w) 3050 | -9/Mines | Discovered exit to Materials (range 4) 3284 | -9/Mines | Discovered exit to Materials (range 11) 3329 | -9/Mines | Build established: Scavenger-Mutant 3348 | -9/Mines | Deemed a non-threat by the Exiles lab entrance 3348 | -9/Mines | Discovered new exit (range 5) 3352 | -9/Mines | Identified exit to Exiles 3364 | -9/Mines | Entered Exiles 3364 | -9/Exiles | Accompanied by 2 allies 3394 | -9/Exiles | Led the pair of lost Derelicts to a safe place 3394 | -9/Exiles | Discovered new exit (range 14) 3418 | -9/Exiles | Met 8R-AWN 3445 | -9/Exiles | Met EX-HEX 3493 | -9/Exiles | Met EX-BIN 3514 | -9/Exiles | Aligned with FarCom system 3515 | -9/Exiles | Given EX-Vault access code 3554 | -9/Exiles | Met EX-DEC 3662 | -9/Exiles | Visited The Gauntlet 3826 | -9/Exiles | Opened EX-Vault 3833 | -9/Exiles | Found Prototype Device 3834 | -9/Exiles | Identified Supersonic Drone Bay 3843 | -9/Exiles | Found Prototype Device 3844 | -9/Exiles | Identified Chronowheel 3844 | -9/Exiles | Activated Chronowheel 3847 | -9/Exiles | Found Prototype Ballistic Cannon 3886 | -9/Exiles | Warned to stay clear of 0b10 Research branches 4060 | -9/Exiles | Discovered new exit (range 10) 4071 | -9/Exiles | Identified exit to Mines 4073 | -9/Exiles | Left Exiles lab with Supersonic Drone Bay 4073 | -9/Exiles | Entered Mines 4153 | -8/Mines | Destroyed by G-47 Trooper with Particle Gun Last Messages --------------- System corrupted: Heat flow error (+129). JTQ4Q%39WYFWPY>L4LCMTZTWKU&&1KE0OWZ:VIAM EXIT=FOUND EXIT=IDENTIFIED: MINES LOCATION=MINES GOAL=ESCAPE Receiving FarCom transmissions... <>WO4WY>K=PUCT95UOT%KTBADTLVK Trailblazer released from Supersonic Drone Bay. You have a new controllable ally. Review and give out orders from the Allies menu (F5). Grenade Launcher destroyed. B-36 Bruiser destroyed. Lgt. Ion Engine destroyed. G-47 Trooper suffers critical hit (Destroy). Destroyed Aluminum Leg. Lgt. Assault Rifle destroyed. Critical hit (Burn: +37). Trailblazer destroyed. System corrupted: Substantial component data lost. Map ----- +----------------------------------------------------+ | ?????????????????????????????? | | ?????????????????????????????? | | ?????????????????????????????? | | ?????????????????????????????? | | ?????????????????????????????? | | ?????????????????????????????? | | ?????????????????????????????? | | ?????????????????????????????? | | ?????????????????????????????? | | ?????????#????????###????????? | | ?????????# ??????# ##???????? | | ????????## #????? #???????? | | ???????## ##?## ????????? | | ???????# ## ?????????? | | ???????# ?????????? | | ????????# ??????????? | | ??????????# ???????????? | | ???????????# #???????????? | | ???????????# #####???????? | | ???????????# ##??????? | | ???????????# ##?????? | | ???????????## ####??? | | ????????????## !%g% ##?? | | ?????????????## /g #?? | | ??????????????######### #?? | | ??????????????????????## @##?? | | ???????????????????????####??? | | ?????????????????????????????? | | ?????????????????????????????? | | ????????????????????s????????? | | ????????????????????ss???????? | | ??????????????????????s??????? | | ?????????????????????????????? | | ?????????????????????????????? | | ?????????????????????????????? | | ?????????????????????????????? | | ?????????????????????????????? | | ?????????????????????????????? | | ?????????????????????????????? | | ?????????????????????????????? | | ?????????????????????????????? | | ?????????????????????????????? | | ?????????????????????????????? | | ?????????????????????????????? | | ?????????????????????????????? | | ?????????????????????????????? | | ?????????????????????????????? | | ?????????????????????????????? | | ?????????????????????????????? | | ?????????????????????????????? | +----------------------------------------------------+ Best States ------------- Heat Dissipation 28 Energy Generation 10 Energy Capacity 250 Matter Stores 300 Matter Capacity 300 Sight Range 16 Terrain Scan Density 10 Additional Mass Support 6 Evasion (%) 55 Recoil Reduction 2 Offensive Hacking 10 Item Schematics ----------------- None Robot Schematics ------------------ None Fabricated ------------ Nothing Alien Tech Used ----------------- None Achievements -------------- It's Just You Maybe Next Time I'll Detach My Launcher Challenges ------------ None Game ------ Seed TimingMassLauncher Manual? 0 Play Time 00:39:25 Cumulative 11.8 hours Start 2024.04.01 @ 13:21:49 End 2024.04.01 @ 14:05:00 Sessions 1 Manual Loads 0 Difficulty Rogue Special Mode None Game No. 10 Rogue 10 Adventurer 0 Explorer 0 Win Type - Total 0 Types 0/0/0/0/0/0/0/0/0 Lore% 11 Gallery% 16 Achievement% 14 Wizard Run 0 Options --------- Layout 0 ASCII 0 Keyboard 0 Movement Mouse Keybinds 0 Fullscreen 1 Font 24/X11 Map View 76x50 Zoom Use 0% Tactical HUD 0 Map Filters NONE Filters NONE Steam 1 RUN: 8005291d-8449-4468-bef4-b43d3eaa154a